bitfinex-derivatives/quotes_BNBF0:USTF0_20250807
["timestamp","ask_amount","ask_price","bid_price","bid_amount"]
[1754592124159,0.85813326,777.62,777.18,0.86111861]
[1754592124364,0.925,777.71,777.18,0.86111861]
[1754592124565,0.85806739,777.7,777.18,0.86111861]
[1754592124764,0.85806739,777.69,777.18,0.86111861]
[1754592125060,0.85806739,777.68,777.18,0.86111861]
[1754592125262,0.85806739,777.67,777.18,0.86111861]
[1754592125460,0.85806739,777.66,777.18,0.86111861]
[1754592125661,0.85806739,777.65,777.18,0.86111861]
[1754592125866,0.85802044,777.64,777.18,0.86111861]
[1754592126066,0.925,777.71,777.18,0.86111861]
[1754592126265,0.85799189,777.7,777.18,0.86111861]
[1754592126463,0.85799189,777.69,777.18,0.86111861]
[1754592126767,0.85799189,777.68,777.18,0.86111861]
[1754592127063,0.85799189,777.67,777.18,0.86111861]
[1754592127263,0.85799189,777.66,777.18,0.86111861]
[1754592127463,0.85799189,777.65,777.18,0.86111861]
[1754592127671,0.85799189,777.64,777.18,0.86111861]
[1754592127863,0.925,777.71,777.18,0.86111861]
[1754592128063,0.85797963,777.7,777.18,0.86111861]
[1754592128265,0.85797963,777.69,777.18,0.86111861]
[1754592128466,0.85797963,777.68,777.18,0.86111861]
[1754592128667,0.85797963,777.67,777.17,0.86111861]
[1754592128963,0.85796603,777.66,777.17,0.86111861]
[1754592129166,0.925,777.71,777.16,0.86111861]
[1754592129366,0.85794594,777.7,777.16,0.86111861]
[1754592129564,0.85794594,777.69,777.16,0.86111861]
[1754592129870,0.85794594,777.68,777.16,0.86111861]
[1754592130163,0.85794594,777.67,777.16,0.86111861]
[1754592130364,0.85794594,777.66,777.16,0.86111861]
[1754592130566,0.925,777.71,777.16,0.86111861]
[1754592130867,0.85794939,777.7,777.16,0.86111861]
[1754592131164,0.925,777.71,777.16,0.86111861]
[1754592131165,0.85794939,777.69,777.16,0.86111861]
[1754592131369,0.85794939,777.68,777.16,0.86111861]
[1754592131663,0.85794939,777.67,777.16,0.86111861]
[1754592131869,0.8579461,777.66,777.16,0.86111861]
[1754592132071,0.925,777.71,777.16,0.86111861]
[1754592132365,0.85793271,777.7,777.16,0.86111861]
[1754592132565,0.85793271,777.69,777.16,0.86111861]
[1754592132765,0.85793271,777.68,777.16,0.86111861]
[1754592132969,0.85793271,777.67,777.16,0.86111861]
[1754592133164,0.85793271,777.66,777.16,0.86111861]
[1754592133365,0.925,777.71,777.17,0.86111861]
[1754592133570,0.85795151,777.7,777.17,0.86111861]
[1754592133770,0.85795151,777.69,777.17,0.86111861]
[1754592133968,0.85795151,777.68,777.17,0.86111861]
[1754592134167,0.85795151,777.67,777.16,0.86111861]
[1754592134367,0.85795151,777.66,777.17,0.86111861]
[1754592134566,0.925,777.71,777.17,0.86111861]
[1754592134769,0.85796026,777.7,777.17,0.86111861]
[1754592134970,0.85796026,777.69,777.17,0.86111861]
[1754592135175,0.85796026,777.68,777.17,0.86111861]
[1754592135371,0.85796026,777.67,777.17,0.86111861]
[1754592135570,0.925,777.71,777.17,0.86111861]
[1754592135571,0.85796026,777.66,777.17,0.86111861]
[1754592135775,0.925,777.71,777.17,0.86111861]
[1754592135976,0.85796701,777.7,777.17,0.86111861]
[1754592136173,0.85796701,777.69,777.17,0.86111861]
[1754592136377,0.85796701,777.68,777.17,0.86111861]
[1754592136573,0.85796701,777.67,777.17,0.86111861]
[1754592136777,0.85796701,777.66,777.17,0.86111861]
[1754592136978,0.925,777.71,777.17,0.86111861]
[1754592137274,0.85797749,777.7,777.17,0.86111861]
[1754592137477,0.85797749,777.69,777.17,0.86111861]
[1754592137674,0.925,777.71,777.17,0.86111861]
[1754592137875,0.85798873,777.7,777.13,0.86111861]
[1754592138178,0.85798873,777.69,777.13,0.86111861]
[1754592138379,0.925,777.71,777.13,0.86111861]
[1754592138776,0.925,777.71,777.14,0.86111861]
[1754592141480,0.925,777.71,777.15,0.86111861]
[1754592141680,0.925,777.71,777.19,0.86111861]
[1754592142979,0.925,777.71,777.18,0.86111861]
[1754592144183,0.925,777.71,777.18,0.86117848]
[1754592145381,0.925,777.71,777.19,0.86117848]
[1754592147785,0.925,777.71,777.22,0.86117848]
[1754592148284,0.925,777.71,777.23,0.86117848]
[1754592149089,0.925,777.71,777.22,0.86117848]
[1754592149386,0.85840105,777.7,777.24,0.86117848]
[1754592149590,0.925,777.71,777.24,0.86117848]
[1754592149786,0.85840105,777.7,777.24,0.86117848]
[1754592149991,0.925,777.71,777.24,0.86117848]
[1754592150188,0.925,777.71,777.23,0.86117848]
[1754592150394,0.85845784,777.7,777.24,0.86117848]
[1754592150589,0.925,777.71,777.24,0.86117848]
[1754592150793,0.85845784,777.7,777.24,0.86117848]
[1754592150992,0.925,777.71,777.24,0.86117848]
[1754592151190,0.925,777.71,777.23,0.86117848]
[1754592151394,0.85852506,777.7,777.23,0.86117848]
[1754592151590,0.925,777.71,777.23,0.86117848]
[1754592151794,0.85852506,777.7,777.23,0.86117848]
[1754592151995,0.925,777.71,777.23,0.86117848]
[1754592152496,0.85854245,777.7,777.23,0.86117848]
[1754592152698,0.925,777.71,777.24,0.86117848]
[1754592152995,0.85854245,777.7,777.24,0.86117848]
[1754592153199,0.925,777.71,777.24,0.86117848]
[1754592153400,0.85852808,777.7,777.24,0.86117848]
[1754592153700,0.85852808,777.69,777.24,0.86117848]
[1754592153896,0.86639173,777.84,777.24,0.86117848]
[1754592154105,1.72495692,777.83,777.25,0.86117848]
[1754592154296,0.85856519,777.82,777.25,0.86117848]
[1754592154496,0.85856519,777.81,777.25,0.86117848]
[1754592154798,0.85856519,777.8,777.25,0.86117848]
[1754592154999,0.85856519,777.79,777.25,0.86117848]
[1754592155195,0.85856519,777.78,777.25,0.86117848]
[1754592155399,0.85856519,777.77,777.25,0.86117848]
[1754592155695,0.8586195,777.76,777.25,0.86117848]
[1754592155901,0.8586195,777.75,777.25,0.86117848]
[1754592156100,0.8586195,777.74,777.24,0.86117848]
[1754592156299,0.85860895,777.73,777.24,0.86117848]
[1754592156500,0.85860895,777.72,777.24,0.86117848]
[1754592156698,0.85860895,777.71,777.24,0.86117848]
[1754592156897,0.85860895,777.7,777.24,0.86117848]
[1754592157097,1.026,777.76,777.24,0.86117848]
[1754592157301,0.85864076,777.75,777.24,0.86117848]
[1754592157601,0.85864076,777.74,777.24,0.86117848]
[1754592157901,0.85864076,777.73,777.24,0.86117848]
[1754592158101,0.85864076,777.72,777.24,0.86117848]
[1754592158301,0.85864076,777.71,777.24,0.86117848]
[1754592158601,0.85864076,777.7,777.24,0.86117848]
[1754592158901,1.026,777.76,777.25,0.86117848]
[1754592159197,0.85865267,777.75,777.25,0.86117848]
[1754592159402,0.85865267,777.74,777.25,0.86117848]
[1754592159697,0.85865267,777.73,777.25,0.86117848]
[1754592159898,0.85865267,777.72,777.25,0.86117848]
[1754592160096,0.85865267,777.71,777.25,0.86117848]
[1754592160301,0.85865267,777.7,777.25,0.86117848]
[1754592160598,1.026,777.76,777.25,0.86117848]
[1754592160797,0.8586656,777.75,777.25,0.86117848]
[1754592161001,0.8586656,777.74,777.26,0.86117848]
[1754592161200,0.8586656,777.73,777.26,0.86117848]
[1754592161496,0.8586656,777.72,777.26,0.86117848]
[1754592161701,0.8586656,777.71,777.26,0.86117848]
[1754592161901,0.8586656,777.7,777.26,0.86117848]
[1754592162200,0.8586656,777.69,777.26,0.86117848]
[1754592162395,1.026,777.76,777.26,0.86117848]
[1754592162597,0.85869116,777.75,777.26,0.86117848]
[1754592162900,0.85869116,777.74,777.26,0.86117848]
[1754592163099,0.85869116,777.73,777.26,0.86117848]
[1754592163300,0.85869116,777.72,777.26,0.86117848]
[1754592163498,0.85869116,777.71,777.26,0.86117848]
[1754592163700,0.85869116,777.7,777.26,0.86117848]
[1754592163902,0.85869116,777.69,777.26,0.86117848]
[1754592164101,1.026,777.76,777.26,0.86117848]
[1754592164399,0.85870609,777.75,777.26,0.86117848]
[1754592164698,0.85873016,777.74,777.26,0.86117848]
[1754592164899,0.85873016,777.73,777.26,0.86117848]
[1754592165098,0.85873016,777.72,777.26,0.86117848]
[1754592165304,0.85873016,777.71,777.27,0.86117848]
[1754592165500,0.85873016,777.7,777.27,0.86117848]
[1754592165701,0.85873016,777.69,777.27,0.86117848]
[1754592165904,0.85873016,777.68,777.29,0.86117848]
[1754592166105,0.85873016,777.67,777.29,0.86117848]
[1754592166299,1.026,777.76,777.29,0.86117848]
[1754592166300,0.85878045,777.66,777.29,0.86117848]
[1754592166504,1.026,777.76,777.29,0.86117848]
[1754592166701,0.85878036,777.75,777.29,0.86117848]
[1754592166901,0.85878036,777.74,777.29,0.86117848]
[1754592167201,0.85878036,777.73,777.29,0.86117848]
[1754592167403,0.85878036,777.72,777.29,0.86117848]
[1754592167601,0.85878036,777.71,777.28,0.86117848]
[1754592167907,0.85878036,777.7,777.28,0.86117848]
[1754592168100,0.85878036,777.69,777.28,0.86117848]
[1754592168307,0.85878036,777.68,777.28,0.86117848]
[1754592168506,0.85878036,777.67,777.28,0.86117848]
[1754592168706,1.064,777.67,777.28,0.86117848]
[1754592169808,1.064,777.67,777.27,0.86117848]
[1754592170208,1.064,777.67,777.28,0.86117848]
[1754592171704,1.064,777.67,777.23,0.86117848]
[1754592172008,1.064,777.67,777.23,0.86206081]
[1754592173607,1.064,777.67,777.2,0.86206081]
[1754592173904,1.064,777.67,777.21,0.86206081]
[1754592174304,1.064,777.67,777.23,0.86206081]
[1754592174506,0.85906235,777.66,777.23,0.86206081]
[1754592174706,0.85906235,777.65,777.23,0.86206081]
[1754592174905,0.85906235,777.64,777.23,0.86206081]
[1754592175107,0.85906235,777.63,777.22,0.86206081]
[1754592175307,0.85906235,777.62,777.26,0.86206081]
[1754592175508,0.85906235,777.61,777.26,0.86206081]
[1754592175707,0.85906235,777.6,777.26,0.86206081]
[1754592175907,0.85906235,777.59,777.26,0.86206081]
[1754592176205,0.85906235,777.58,777.26,0.86206081]
[1754592176405,0.85906235,777.57,777.27,0.86206081]
[1754592176605,0.85906235,777.56,777.27,0.86206081]
[1754592176806,0.85906235,777.55,777.27,0.86206081]
[1754592177008,0.85906235,777.54,777.27,0.86206081]
[1754592177208,0.85906235,777.53,777.27,0.86206081]
[1754592177407,1.064,777.67,777.27,0.86206081]
[1754592177605,0.85926932,777.66,777.27,0.86206081]
[1754592177810,0.85926932,777.65,777.27,0.86206081]
[1754592178011,0.85926932,777.64,777.27,0.86206081]
[1754592178309,0.85926932,777.63,777.27,0.86206081]
[1754592178510,0.85926932,777.62,777.27,0.86206081]
[1754592178712,0.85926932,777.61,777.27,0.86206081]
[1754592178907,0.85926932,777.6,777.27,0.86206081]
[1754592179211,0.85926932,777.59,777.27,0.86206081]
[1754592179410,0.85926932,777.58,777.27,0.86206081]
[1754592179610,1.064,777.67,777.27,0.86206081]
[1754592179611,0.85926932,777.57,777.27,0.86206081]
[1754592179907,0.85926932,777.56,777.27,0.86206081]
[1754592180110,0.85926932,777.55,777.27,0.86206081]
[1754592180310,0.85926932,777.54,777.27,0.86206081]
[1754592180613,0.8591153,777.53,777.27,0.86206081]
[1754592180807,1.064,777.67,777.27,0.86206081]
[1754592181010,0.8591153,777.66,777.27,0.86206081]
[1754592181207,0.8591153,777.65,777.26,0.86206081]
[1754592181412,0.8591153,777.64,777.27,0.86206081]
[1754592181612,1.064,777.67,777.28,0.86206081]
[1754592181812,0.85911805,777.66,777.28,0.86206081]
[1754592182108,0.85911805,777.65,777.28,0.86206081]
[1754592182309,0.85907487,777.64,777.28,0.86206081]
[1754592182511,0.85907487,777.63,777.28,0.86206081]
[1754592182713,0.85907487,777.62,777.19,0.86206081]
[1754592183012,0.85907487,777.61,777.18,0.86206081]
[1754592183212,0.85907487,777.6,777.18,0.86206081]
[1754592183411,0.85907487,777.59,777.18,0.86206081]
[1754592183709,0.85907487,777.58,777.15,0.86206081]
[1754592183910,0.85907487,777.57,777.15,0.86206081]
[1754592184114,0.85907487,777.56,777.14,0.86206081]
[1754592184309,0.85907487,777.55,777.15,0.86206081]
[1754592184609,0.85907487,777.54,777.14,0.86206081]
[1754592184913,0.85907487,777.53,777.15,0.86206081]
[1754592185115,0.85907487,777.52,777.16,0.86206081]
[1754592185311,0.85907487,777.51,777.15,0.86206081]
[1754592185513,0.86711737,777.64,777.16,0.86206081]
[1754592185814,0.86711737,777.61,777.13,0.86206081]
[1754592186015,0.85875526,777.6,777.13,0.86206081]
[1754592186215,0.85875526,777.59,777.12,0.86206081]
[1754592186518,0.85875526,777.58,777.11,0.86206081]
[1754592186716,0.85875526,777.57,777.1,0.86206081]
[1754592186916,0.85875526,777.56,777.1,0.86206081]
[1754592187121,0.85875526,777.55,777.09,0.86206081]
[1754592187416,0.85875526,777.54,777.09,0.86206081]
[1754592187619,0.85875526,777.53,777.09,0.86206081]
[1754592187816,0.86711737,777.65,777.09,0.86206081]
[1754592188020,0.85857825,777.64,777.09,0.86206081]
[1754592188220,0.85857825,777.63,777.09,0.86206081]
[1754592188520,0.85857825,777.62,777.09,0.86206081]
[1754592188717,0.85857825,777.61,777.07,0.86206081]
[1754592188921,0.85857825,777.6,777.07,0.86206081]
[1754592189124,0.85857825,777.59,777.07,0.86206081]
[1754592189322,0.85857825,777.58,777.07,0.86206081]
[1754592189524,0.85857825,777.57,777.07,0.86206081]
[1754592189719,0.85857825,777.56,777.07,0.86206081]
[1754592189920,1.064,777.67,777.07,0.86206081]
[1754592190120,0.85842663,777.66,777.06,0.86206081]
[1754592190323,0.85842663,777.65,777.06,0.86206081]
[1754592190519,0.85842663,777.64,777.06,0.86206081]
[1754592190723,0.85835789,777.63,777.06,0.86206081]
[1754592190921,0.85835789,777.62,777.06,0.86206081]
[1754592191224,0.85835789,777.61,777.06,0.86206081]
[1754592191420,0.85835789,777.6,777.06,0.86206081]
[1754592191624,0.85835789,777.59,777.06,0.86206081]
[1754592191825,0.85835789,777.58,777.06,0.86206081]
[1754592192022,0.85835789,777.57,777.06,0.86206081]
[1754592192221,0.85835789,777.56,777.05,0.86206081]
[1754592192522,1.064,777.67,777.05,0.86206081]
[1754592192724,0.85823216,777.66,777.05,0.86206081]
[1754592192924,0.85823216,777.65,777.05,0.86206081]
[1754592193122,0.85823216,777.64,777.05,0.86206081]
[1754592193322,0.85823216,777.63,777.05,0.86206081]
[1754592193521,0.85823216,777.62,777.05,0.86206081]
[1754592193822,1.064,777.67,776.99,0.86206081]
[1754592194023,0.85816837,777.66,776.99,0.86206081]
[1754592194225,0.85816837,777.65,776.99,0.86206081]
[1754592194422,1.064,777.67,776.99,0.86206081]
[1754592195223,1.064,777.67,776.98,0.86206081]
[1754592195627,1.064,777.67,776.99,0.86206081]
[1754592195824,1.064,777.67,777.08,0.86206081]
[1754592198826,0.86711737,777.92,777.08,0.86206081]
[1754592199029,1.7251374,777.91,777.08,0.86206081]
[1754592199328,0.85802003,777.9,777.08,0.86206081]
[1754592199532,0.86711737,777.91,777.08,0.86206081]
[1754592199725,0.85802995,777.9,777.08,0.86206081]
[1754592199930,0.85802995,777.89,777.08,0.86206081]
[1754592200225,0.85802995,777.88,777.08,0.86206081]
[1754592200529,0.85802995,777.87,777.08,0.86206081]
[1754592200725,0.85802995,777.86,777.08,0.86206081]
[1754592201028,0.85802995,777.85,777.08,0.86206081]
[1754592201430,0.995,777.86,777.08,0.86206081]
[1754592201729,0.85805002,777.85,777.12,0.86206081]
[1754592201927,0.85805002,777.84,777.12,0.86206081]
[1754592202127,0.85805002,777.83,777.12,0.86206081]
[1754592202327,0.85805002,777.82,777.12,0.86206081]
[1754592202529,0.85805002,777.81,777.12,0.86206081]
[1754592202727,0.85805002,777.8,777.1,0.86206081]
[1754592202930,0.85805002,777.79,777.1,0.86206081]
[1754592203127,0.86711737,777.68,777.01,0.86206081]
[1754592203326,1.72516739,777.67,777.0,0.86206081]
[1754592203528,0.86711737,777.65,777.01,0.86206081]
[1754592203729,0.86711737,777.61,776.97,0.86206081]
[1754592203926,0.85805002,777.6,776.97,0.86206081]
[1754592204126,0.85805002,777.6,776.96,0.86206081]
[1754592205426,0.85805002,777.59,776.96,0.86206081]
[1754592205631,0.85805002,777.58,776.96,0.86206081]
[1754592205833,0.85805002,777.57,776.96,0.86206081]
[1754592206033,0.85805002,777.56,776.96,0.86206081]
[1754592206230,0.85805002,777.55,776.96,0.86206081]
[1754592206434,0.85805002,777.54,776.96,0.86206081]
[1754592206631,0.85805002,777.53,776.96,0.86206081]
[1754592206835,0.85805002,777.52,776.96,0.86206081]
[1754592207035,0.85805002,777.51,776.96,0.86206081]
[1754592207232,0.85805002,777.5,776.81,1.1480059]
[1754592207436,0.85805002,777.49,776.92,0.86195921]
[1754592207636,0.85805002,777.48,776.92,0.86195921]
[1754592207836,0.86557894,777.6,776.92,0.86195921]
[1754592208136,0.85763266,777.59,776.91,0.86195921]
[1754592208435,0.85763266,777.58,776.92,0.86195921]
[1754592208638,0.86557894,777.62,776.92,0.86195921]
[1754592208837,0.85753287,777.61,776.92,0.86195921]
[1754592209041,0.85753287,777.6,776.92,0.86195921]
[1754592209238,0.85753287,777.59,776.92,0.86195921]
[1754592209437,0.85753287,777.58,776.92,0.86195921]
[1754592209636,0.85753287,777.57,776.92,0.86195921]
[1754592209837,0.85753287,777.56,776.92,0.86195921]
[1754592210035,0.85753287,777.55,776.92,0.86195921]
[1754592210240,0.85753287,777.54,776.91,0.86195921]
[1754592210536,0.85753287,777.53,776.91,0.86195921]
[1754592210735,0.85753287,777.52,776.91,0.86195921]
[1754592210933,0.86557894,777.63,776.91,0.86195921]
[1754592210934,0.85753287,777.51,776.91,0.86195921]
[1754592211136,0.85753287,777.5,776.91,0.86195921]
[1754592211339,0.85753287,777.49,776.9,0.86195921]
[1754592211540,0.86557894,777.63,776.9,0.86195921]
[1754592211839,0.85730152,777.62,776.91,0.86195921]
[1754592212039,0.85730152,777.61,776.91,0.86195921]
[1754592212338,0.85730152,777.6,776.9,0.86195921]
[1754592212535,0.85730152,777.59,776.9,0.86195921]
[1754592212835,0.85730152,777.58,776.9,0.86195921]
[1754592213138,0.85730152,777.57,776.88,0.86195921]
[1754592213342,0.85730152,777.56,776.88,0.86195921]
[1754592213640,0.85730152,777.55,776.88,0.86195921]
[1754592213939,0.85730152,777.54,776.88,0.86195921]
[1754592214139,0.85730152,777.53,776.88,0.86195921]
[1754592214334,0.85730152,777.52,776.88,0.86195921]
[1754592214540,0.85730152,777.51,776.89,0.86195921]
[1754592214743,0.86557894,777.67,776.89,0.86195921]
[1754592214943,0.8571443,777.66,776.89,0.86195921]
[1754592215141,0.8571443,777.65,776.89,0.86195921]
[1754592215342,0.8571443,777.64,776.88,0.86195921]
[1754592215637,0.8571443,777.63,776.88,0.86195921]
[1754592215939,0.8571443,777.62,776.88,0.86195921]
[1754592216140,0.8571443,777.61,776.88,0.86195921]
[1754592216337,0.8571443,777.6,776.88,0.86195921]
[1754592216536,0.8571443,777.59,776.88,0.86195921]
[1754592216736,0.8571443,777.58,776.88,0.86195921]
[1754592216938,0.8571443,777.57,776.88,0.86195921]
[1754592217137,0.8571443,777.56,776.88,0.86195921]
[1754592217338,0.8571443,777.55,776.88,0.86195921]
[1754592217638,0.8571443,777.54,776.88,0.86195921]
[1754592217839,0.85707193,777.53,776.88,0.86195921]
[1754592218043,0.85707193,777.52,776.88,0.86195921]
[1754592218342,0.85706066,777.51,776.88,0.86195921]
[1754592218543,0.86557894,777.67,776.88,0.86195921]
[1754592218743,0.85706066,777.66,776.88,0.86195921]
[1754592219041,0.85706066,777.65,776.88,0.86195921]
[1754592219240,0.85706066,777.64,776.88,0.86195921]
[1754592219437,0.85706066,777.63,776.88,0.86195921]
[1754592219640,0.85706066,777.62,776.88,0.86195921]
[1754592219943,0.85706066,777.61,776.88,0.86195921]
[1754592220139,0.85706066,777.6,776.88,0.86195921]
[1754592220338,0.85706066,777.59,776.88,0.86195921]
[1754592220544,0.85706066,777.58,776.88,0.86195921]
[1754592220740,0.85706066,777.57,776.88,0.86195921]
[1754592221043,0.85705978,777.56,776.88,0.86195921]
[1754592221240,0.85705978,777.55,776.88,0.86195921]
[1754592221443,0.85705978,777.54,776.88,0.86195921]
[1754592221640,0.85705978,777.53,776.88,0.86195921]
[1754592221946,0.85705978,777.52,776.88,0.86195921]
[1754592222143,0.85705978,777.51,776.88,0.86195921]
[1754592222343,0.86557894,777.67,776.88,0.86195921]
[1754592222541,0.85708745,777.66,776.88,0.86195921]
[1754592222745,0.85708745,777.65,776.88,0.86195921]
[1754592222949,0.86557894,777.63,776.91,0.86195921]
[1754592223150,0.85708745,777.62,776.91,0.86195921]
[1754592223350,0.85708745,777.61,776.91,0.86195921]
[1754592223648,0.85708745,777.6,776.91,0.86195921]
[1754592223847,0.85708745,777.59,776.91,0.86195921]
[1754592224046,0.85708745,777.58,776.91,0.86195921]
[1754592224249,0.85708745,777.57,776.91,0.86195921]
[1754592224445,0.85708745,777.56,776.91,0.86195921]
[1754592224649,0.85708745,777.55,776.91,0.86195921]
[1754592224852,0.85708745,777.54,776.91,0.86195921]
[1754592225047,0.85708745,777.53,776.91,0.86195921]
[1754592225250,0.85708745,777.52,776.91,0.86195921]
[1754592225552,0.85708745,777.51,776.91,0.86195921]
[1754592225752,0.85708745,777.5,776.91,0.86195921]
[1754592225955,0.85708745,777.49,776.91,0.86195921]
[1754592226253,0.85723756,777.48,776.91,0.86195921]
[1754592226453,0.86557894,777.62,776.91,0.86195921]
[1754592226949,0.85723756,777.61,776.91,0.86195921]
[1754592227153,0.85723756,777.6,776.91,0.86195921]
[1754592227353,0.85723756,777.59,776.91,0.86195921]
[1754592227548,0.85723756,777.58,776.91,0.86195921]
[1754592227754,0.85723756,777.57,776.91,0.86195921]
[1754592227954,0.85723756,777.56,776.91,0.86195921]
[1754592228154,0.85723756,777.55,776.91,0.86195921]
[1754592228355,0.85723756,777.54,776.91,0.86195921]
[1754592228655,0.85723756,777.53,776.91,0.86195921]
[1754592228858,0.85723756,777.52,776.91,0.86195921]
[1754592229051,0.85723756,777.51,776.91,0.86195921]
[1754592229252,0.85723756,777.5,776.91,0.86195921]
[1754592229553,0.85723756,777.49,776.91,0.86195921]
[1754592229855,0.85723756,777.48,776.91,0.86195921]
[1754592230056,0.86557894,777.63,776.91,0.86195921]
[1754592230253,0.8575255,777.62,776.91,0.86195921]
[1754592230451,0.8575255,777.61,776.91,0.86195921]
[1754592230655,0.8575255,777.6,776.91,0.86195921]
[1754592230854,0.8575255,777.59,776.91,0.86195921]
[1754592231157,0.86557894,777.63,776.78,1.1480059]
[1754592231158,0.8575255,777.58,776.92,0.86195921]
[1754592231453,0.8575255,777.57,776.92,0.86195921]
[1754592231652,0.8575255,777.56,776.92,0.86195921]
[1754592231956,0.8575255,777.55,776.92,0.86195921]
[1754592232157,0.8575255,777.54,776.92,0.86195921]
[1754592232453,0.8575255,777.53,776.92,0.86195921]
[1754592232653,0.8575255,777.52,776.92,0.86195921]
[1754592232860,0.8575255,777.51,776.92,0.86195921]
[1754592233059,0.8575255,777.5,776.92,0.86195921]
[1754592233259,0.8575255,777.49,776.93,0.86195921]
[1754592233455,0.8575255,777.48,776.93,0.86195921]
[1754592233659,0.8575255,777.47,776.93,0.86195921]
[1754592233860,0.8575255,777.46,776.93,0.86195921]
[1754592234062,0.86557894,777.61,776.93,0.86195921]
[1754592234257,0.85782968,777.6,776.93,0.86195921]
[1754592234460,0.85782968,777.59,776.93,0.86195921]
[1754592234660,0.85782968,777.58,776.93,0.86195921]
[1754592234960,0.85782968,777.57,776.93,0.86195921]
[1754592235157,0.85782968,777.56,776.93,0.86195921]
[1754592235458,0.85782968,777.55,776.93,0.86195921]
[1754592235662,0.86557894,777.6,776.93,0.86195921]
[1754592235963,0.8579626,777.59,776.93,0.86195921]
[1754592236262,0.8579626,777.58,776.94,0.86195921]
[1754592236462,0.8579626,777.57,776.94,0.86195921]
[1754592236661,0.8579626,777.56,776.94,0.86195921]
[1754592236961,0.8579626,777.55,776.94,0.86195921]
[1754592237158,0.8579626,777.54,776.95,0.86195921]
[1754592237361,0.8579626,777.53,776.95,0.86195921]
[1754592237562,0.8579626,777.52,776.95,0.86195921]
[1754592237763,0.8579626,777.51,776.95,0.86195921]
[1754592237960,0.8579626,777.5,776.95,0.86195921]
[1754592238259,0.8579626,777.49,776.95,0.86195921]
[1754592238463,0.8579626,777.48,776.95,0.86195921]
[1754592238760,0.8579626,777.47,776.95,0.86195921]
[1754592238959,0.8579626,777.46,776.95,0.86195921]
[1754592239161,0.8579626,777.45,776.96,0.86195921]
[1754592239362,0.8579626,777.44,776.96,0.86195921]
[1754592239561,0.86557894,777.58,776.96,0.86195921]
[1754592239762,0.86557894,777.56,776.95,0.86195921]
[1754592239966,0.86557894,777.56,776.82,1.1480059]
[1754592239967,0.85800599,777.55,776.94,0.86195921]
[1754592240164,0.85800599,777.54,776.95,0.86195921]
[1754592240364,0.85800599,777.53,776.95,0.86195921]
[1754592240560,0.85800599,777.52,776.95,0.86195921]
[1754592240762,0.85800599,777.51,776.91,0.86195921]
[1754592240962,0.85800599,777.5,776.85,0.86195921]
[1754592241166,0.85801484,777.49,776.85,0.86195921]
[1754592241362,0.85801484,777.48,776.85,0.86195921]
[1754592241661,0.85801484,777.47,776.85,0.86195921]
[1754592241865,0.85801484,777.46,776.86,0.86195921]
[1754592242062,0.85801484,777.45,776.86,0.86195921]
[1754592242264,0.85801484,777.44,776.86,0.86195921]
[1754592242462,0.85801484,777.43,776.86,0.86195921]
[1754592242666,0.85801484,777.42,776.86,0.86195921]
[1754592242862,0.85801484,777.41,776.86,0.86195921]
[1754592243166,0.86557894,777.56,776.86,0.86195921]
[1754592243367,0.85800633,777.55,776.86,0.86195921]
[1754592243564,0.85800633,777.54,776.86,0.86195921]
[1754592243767,0.85800633,777.53,776.86,0.86195921]
[1754592243964,0.85800633,777.52,776.86,0.86195921]
[1754592244165,0.85800633,777.51,776.86,0.86195921]
[1754592244466,0.85800633,777.5,776.86,0.86195921]
[1754592244672,0.85800633,777.49,776.86,0.86195921]
[1754592244970,0.85800633,777.48,776.86,0.86195921]
[1754592245269,0.85800633,777.47,776.86,0.86195921]
[1754592245467,0.85800633,777.46,776.86,0.86195921]
[1754592245666,0.85800633,777.45,776.86,0.86195921]
[1754592245866,0.85800633,777.44,776.85,0.86195921]
[1754592246166,0.85800633,777.43,776.86,0.86195921]
[1754592246366,0.85800633,777.42,776.86,0.86195921]
[1754592246568,0.85800633,777.41,776.86,0.86195921]
[1754592246771,0.86557894,777.56,776.86,0.86195921]
[1754592246969,0.85791177,777.55,776.86,0.86195921]
[1754592247173,0.85791177,777.54,776.86,0.86195921]
[1754592247374,0.85791177,777.53,776.86,0.86195921]
[1754592247569,0.85791177,777.52,776.86,0.86195921]
[1754592247770,0.85791177,777.51,776.86,0.86195921]
[1754592247972,0.85791177,777.5,776.86,0.86195921]
[1754592248171,0.85791177,777.49,776.86,0.86195921]
[1754592248471,0.85791177,777.48,776.86,0.86195921]
[1754592248673,0.85791177,777.47,776.86,0.86195921]
[1754592248871,0.85791177,777.46,776.86,0.86195921]
[1754592249076,0.85791177,777.45,776.86,0.86195921]
[1754592249376,0.85791177,777.44,776.86,0.86195921]
[1754592249575,0.85791177,777.43,776.86,0.86195921]
[1754592249776,0.85791177,777.42,776.85,0.86195921]
[1754592249974,0.85791177,777.41,776.85,0.86195921]
[1754592250172,0.86557894,777.56,776.85,0.86195921]
[1754592250475,1.72342462,777.55,776.84,0.86195921]
[1754592250675,0.86557894,777.5,776.87,0.86195921]
[1754592250975,0.85784568,777.49,776.87,0.86195921]